[Event "Irish Championship 2026"]
[Site "Talbot Hotel Stillorgan, Co.Dublin, IE"]
[Date "2026.08.04"]
[Round "4"]
[White "Landmark, Gabriel"]
[Black "Melaugh, Shane"]
[Result "1/2-1/2"]
[Board "69"]
[TimeControl "40/5400+30:1800+30"]
[WhiteFideId "2524848"]
[BlackFideId "2509580"]
[WhiteElo "1999"]
[BlackElo "2157"]
[BlackTitle "FM"]
[WhiteClock "0:24:48"]
[BlackClock "1:31:02"]
[Variant "Standard"]
[EndDate "2026.08.04"]
[EndTime "17:35:48"]

1. e4 {[%clk 1:30:55]}  c5 {[%clk 1:30:58]} 2. Nf3 {[%clk 1:31:01]}  e6 {[%clk 1:31:23]} 3. d4 {[%clk 1:30:51]}  cxd4 {[%clk 1:31:48]}
4. Nxd4 {[%clk 1:31:16]}  Nf6 {[%clk 1:32:13]} 5. Nc3 {[%clk 1:31:05]}  Nc6 {[%clk 1:32:37]} 6. Nxc6 {[%clk 1:30:01]}  bxc6 {[%clk 1:33:02]}
7. e5 {[%clk 1:30:24]}  Nd5 {[%clk 1:33:28]} 8. Ne4 {[%clk 1:30:35]}  Qc7 {[%clk 1:33:53]} 9. f4 {[%clk 1:28:31]}  Qb6 {[%clk 1:33:17]}
10. c4 {[%clk 1:28:49]}  Bb4+ {[%clk 1:33:42]} 11. Ke2 {[%clk 1:29:14]}  f5 {[%clk 1:34:03]} 12. exf6 {[%clk 1:29:37]}  Nxf6 {[%clk 1:34:29]}
13. Be3 {[%clk 1:28:17]}  Qd8 {[%clk 1:32:24]} 14. Nd6+ {[%clk 1:28:34]}  Bxd6 {[%clk 1:32:48]} 15. Qxd6 {[%clk 1:29:01]}  Bb7 {[%clk 1:33:03]}
16. Rg1 {[%clk 1:25:36]}  Rc8 {[%clk 1:21:41]} 17. g4 {[%clk 1:06:59]}  c5 {[%clk 1:22:03]} 18. g5 {[%clk 1:04:38]}  Ne4 {[%clk 1:21:58]}
19. Qe5 {[%clk 1:04:57]}  Qe7 {[%clk 1:21:52]} 20. Bh3 {[%clk 1:03:22]}  O-O {[%clk 1:20:26]} 21. f5 {[%clk 0:54:53]}  Rce8 {[%clk 1:19:06]}
22. f6 {[%clk 0:44:43]}  Qf7 {[%clk 1:19:23]} 23. Raf1 {[%clk 0:33:27]}  Qg6 {[%clk 1:13:52]} 24. Bg4 {[%clk 0:31:29]}  Kh8 {[%clk 1:08:43]}
25. Bf3 {[%clk 0:20:21]}  gxf6 {[%clk 1:06:40]} 26. gxf6 {[%clk 0:16:58]}  Qf5 {[%clk 1:07:06]} 27. Bf4 {[%clk 0:12:58]}  d6 {[%clk 1:06:52]}
28. Qxf5 {[%clk 0:07:22]}  exf5 {[%clk 1:07:17]} 29. Bh6 {[%clk 0:06:33]}  Ng5+ {[%clk 1:05:55]} 30. Kd3 {[%clk 0:05:40]}  Nxf3 {[%clk 1:06:13]}
31. Bxf8 {[%clk 0:02:42]}  Rxf8 {[%clk 1:06:38]} 32. Rg7 {[%clk 0:02:42]}  Be4+ {[%clk 1:06:15]} 33. Ke3 {[%clk 0:03:00]}  Rxf6 {[%clk 1:05:24]}
34. Rxa7 {[%clk 0:03:23]}  Nxh2 {[%clk 1:05:04]} 35. Rg1 {[%clk 0:02:44]}  Ng4+ {[%clk 1:05:29]} 36. Kf4 {[%clk 0:03:06]}  Rg6 {[%clk 1:03:03]}
37. Rd7 {[%clk 0:02:37]}  h5 {[%clk 1:00:50]} 38. Rg3 {[%clk 0:02:37]}  Kg8 {[%clk 0:58:38]} 39. Rb3 {[%clk 0:01:51]}  Rg7 {[%clk 0:55:57]}
40. Rxg7+ {[%clk 0:02:10]}  Kxg7 {[%clk 0:56:25]} 41. Kg5 {[%clk 0:02:32]}  Ne5 {[%clk 0:55:57]} 42. Rc3 {[%clk 0:01:46]}  Kf7 {[%clk 0:55:27]}
43. a4 {[%clk 0:00:52]}  Ke6 {[%clk 0:55:49]} 44. a5 {[%clk 0:30:16]}  Kd7 {[%clk 1:26:12]} 45. a6 {[%clk 0:28:05]}  Kc7 {[%clk 1:24:53]}
46. a7 {[%clk 0:27:44]}  Nd7 {[%clk 1:24:11]} 47. Ra3 {[%clk 0:25:55]}  Nb6 {[%clk 1:24:36]} 48. Kxh5 {[%clk 0:25:31]}  Kb7 {[%clk 1:23:37]}
49. Kg5 {[%clk 0:25:36]}  Na8 {[%clk 1:24:01]} 50. Kf4 {[%clk 0:25:38]}  Nc7 {[%clk 1:24:28]} 51. Ra1 {[%clk 0:25:06]}  Ka8 {[%clk 1:24:22]}
52. Kg5 {[%clk 0:24:24]}  Kb7 {[%clk 1:21:48]} 53. Ra3 {[%clk 0:23:58]}  Kb6 {[%clk 1:21:14]} 54. Ra1 {[%clk 0:22:57]}  Na6 {[%clk 1:21:02]}
55. a8=Q {[%clk 0:23:02]}  Bxa8 {[%clk 1:21:25]} 56. Kxf5 {[%clk 0:23:21]}  Nc7 {[%clk 1:21:45]} 57. Kf4 {[%clk 0:23:01]}  Bb7 {[%clk 1:21:59]}
58. Ke3 {[%clk 0:21:14]}  Ne6 {[%clk 1:22:21]} 59. Kd3 {[%clk 0:20:49]}  Nf4+ {[%clk 1:22:33]} 60. Kc3 {[%clk 0:20:34]}  Ne2+ {[%clk 1:22:59]}
61. Kd2 {[%clk 0:20:35]}  Nd4 {[%clk 1:23:23]} 62. Kc3 {[%clk 0:20:56]}  Nc6 {[%clk 1:23:24]} 63. Rd1 {[%clk 0:20:47]}  Kc7 {[%clk 1:23:51]}
64. Rg1 {[%clk 0:20:59]}  Bc8 {[%clk 1:24:17]} 65. Rg7+ {[%clk 0:21:16]}  Bd7 {[%clk 1:24:43]} 66. Rh7 {[%clk 0:21:29]}  Ne5 {[%clk 1:24:42]}
67. Rh1 {[%clk 0:20:08]}  Be6 {[%clk 1:25:04]} 68. b3 {[%clk 0:20:17]}  Kc6 {[%clk 1:25:31]} 69. Ra1 {[%clk 0:20:37]}  Bg4 {[%clk 1:25:40]}
70. Ra6+ {[%clk 0:20:58]}  Kd7 {[%clk 1:26:07]} 71. Ra7+ {[%clk 0:20:48]}  Ke6 {[%clk 1:26:33]} 72. Rg7 {[%clk 0:21:11]}  Kf5 {[%clk 1:26:39]}
73. Rg8 {[%clk 0:21:30]}  Nc6 {[%clk 1:27:00]} 74. Rf8+ {[%clk 0:21:48]}  Ke5 {[%clk 1:27:08]} 75. Re8+ {[%clk 0:22:00]}  Be6 {[%clk 1:27:32]}
76. Rh8 {[%clk 0:22:18]}  Nd4 {[%clk 1:27:58]} 77. Rh5+ {[%clk 0:22:25]}  Bf5 {[%clk 1:28:25]} 78. Rh2 {[%clk 0:22:17]}  Bc2 {[%clk 1:28:17]}
79. Rxc2 {[%clk 0:22:24]}  Nxc2 {[%clk 1:28:43]} 80. Kxc2 {[%clk 0:22:50]}  Kd4 {[%clk 1:28:58]} 81. Kd2 {[%clk 0:23:09]}  d5 {[%clk 1:29:17]}
82. cxd5 {[%clk 0:23:31]}  Kxd5 {[%clk 1:29:41]} 83. Kc3 {[%clk 0:23:58]}  Kd6 {[%clk 1:30:08]} 84. Kc4 {[%clk 0:24:26]}  Kc6 {[%clk 1:30:34]}
85. b4 {[%clk 0:24:50]}  cxb4 {[%clk 1:31:02]} 86. Kxb4 {[%clk 0:24:48]} 1/2-1/2

[Event "Irish Championship 2026"]
[Site "Talbot Hotel Stillorgan, Co.Dublin, IE"]
[Date "2026.08.04"]
[Round "4"]
[White "Dash, Shaurya"]
[Black "Melaugh, Gavin"]
[Result "0-1"]
[Board "70"]
[TimeControl "40/5400+30:1800+30"]
[WhiteFideId "2534789"]
[BlackFideId "2509571"]
[WhiteElo "1751"]
[BlackElo "2093"]
[WhiteClock "0:01:13"]
[BlackClock "0:27:42"]
[Variant "Standard"]
[EndDate "2026.08.04"]
[EndTime "17:19:37"]

1. d4 {[%clk 1:30:57]}  Nf6 {[%clk 1:06:22]} 2. c4 {[%clk 1:31:20]}  g6 {[%clk 1:06:47]} 3. Nc3 {[%clk 1:31:42]}  Bg7 {[%clk 1:07:11]}
4. e4 {[%clk 1:32:04]}  d6 {[%clk 1:07:38]} 5. Be2 {[%clk 1:32:23]}  O-O {[%clk 1:08:00]} 6. Be3 {[%clk 1:32:48]}  Na6 {[%clk 1:07:45]}
7. g4 {[%clk 1:32:28]}  c5 {[%clk 1:08:10]} 8. f3 {[%clk 1:30:53]}  Qb6 {[%clk 1:06:21]} 9. Rb1 {[%clk 1:18:01]}  Nb4 {[%clk 1:02:57]}
10. a3 {[%clk 1:12:45]}  cxd4 {[%clk 1:03:08]} 11. Na4 {[%clk 1:07:09]}  Qc7 {[%clk 1:01:08]} 12. Bxd4 {[%clk 1:07:12]}  Nc6 {[%clk 1:01:16]}
13. Bc3 {[%clk 1:01:01]}  a6 {[%clk 1:00:35]} 14. h4 {[%clk 0:57:06]}  Rb8 {[%clk 0:57:41]} 15. b4 {[%clk 0:51:01]}  b5 {[%clk 0:57:51]}
16. Nb2 {[%clk 0:50:51]}  d5 {[%clk 0:53:44]} 17. cxd5 {[%clk 0:44:49]}  Qg3+ {[%clk 0:54:08]} 18. Kf1 {[%clk 0:44:21]}  Nd8 {[%clk 0:46:33]}
19. Rh3 {[%clk 0:40:25]}  Qc7 {[%clk 0:46:30]} 20. Rc1 {[%clk 0:38:34]}  Qa7 {[%clk 0:46:23]} 21. Bd4 {[%clk 0:37:05]}  Qa8 {[%clk 0:46:51]}
22. Rh2 {[%clk 0:33:42]}  e6 {[%clk 0:44:32]} 23. g5 {[%clk 0:30:31]}  Nh5 {[%clk 0:42:55]} 24. Bxg7 {[%clk 0:30:31]}  Kxg7 {[%clk 0:43:10]}
25. Qd4+ {[%clk 0:29:38]}  Kg8 {[%clk 0:42:46]} 26. Nd3 {[%clk 0:25:17]}  exd5 {[%clk 0:42:48]} 27. exd5 {[%clk 0:25:05]}  Bb7 {[%clk 0:41:55]}
28. Nc5 {[%clk 0:21:34]}  Bxd5 {[%clk 0:41:04]} 29. Nd7 {[%clk 0:21:04]}  Ne6 {[%clk 0:41:16]} 30. Qe5 {[%clk 0:19:03]}  Rbe8 {[%clk 0:37:12]}
31. Nxf8 {[%clk 0:15:26]}  Nxf8 {[%clk 0:37:35]} 32. Qb2 {[%clk 0:13:48]}  Ne6 {[%clk 0:36:10]} 33. Rc3 {[%clk 0:11:15]}  Nef4 {[%clk 0:34:51]}
34. Kf2 {[%clk 0:10:41]}  Rxe2+ {[%clk 0:29:21]} 35. Nxe2 {[%clk 0:10:54]}  Qa7+ {[%clk 0:29:06]} 36. Kf1 {[%clk 0:09:24]}  Bc4 {[%clk 0:29:08]}
37. Rxc4 {[%clk 0:06:46]}  bxc4 {[%clk 0:29:37]} 38. Nxf4 {[%clk 0:06:19]}  Nxf4 {[%clk 0:29:44]} 39. Qc1 {[%clk 0:04:01]}  Qd4 {[%clk 0:29:08]}
40. Qd2 {[%clk 0:01:23]}  Nd3 {[%clk 0:26:59]} 41. Qe2 {[%clk 0:00:52]}  Qa1+ {[%clk 0:27:16]} 42. Kg2 {[%clk 0:01:13]}  Nf4+ {[%clk 0:27:42]} 0-1

[Event "Irish Championship 2026"]
[Site "Talbot Hotel Stillorgan, Co.Dublin, IE"]
[Date "2026.08.04"]
[Round "4"]
[White "Hushpit, Lukian"]
[Black "Hughes, Padraig"]
[Result "1-0"]
[Board "71"]
[TimeControl "40/5400+30:1800+30"]
[WhiteFideId "14189208"]
[BlackFideId "2505690"]
[WhiteElo "2088"]
[BlackElo "2022"]
[WhiteClock "0:17:26"]
[BlackClock "0:09:59"]
[Variant "Standard"]
[EndDate "2026.08.04"]
[EndTime "18:29:28"]

1. e4 {[%clk 1:30:58]}  e6 {[%clk 1:30:34]} 2. d4 {[%clk 1:31:19]}  d5 {[%clk 1:30:59]} 3. Nd2 {[%clk 1:31:44]}  c5 {[%clk 1:31:24]}
4. Ngf3 {[%clk 1:32:08]}  cxd4 {[%clk 1:31:08]} 5. exd5 {[%clk 1:32:32]}  Qxd5 {[%clk 1:31:08]} 6. Bc4 {[%clk 1:32:55]}  Qd7 {[%clk 1:31:32]}
7. O-O {[%clk 1:33:08]}  Nc6 {[%clk 1:31:55]} 8. Nb3 {[%clk 1:33:03]}  a6 {[%clk 1:32:18]} 9. a4 {[%clk 1:33:01]}  Nge7 {[%clk 1:17:52]}
10. Nfxd4 {[%clk 1:30:48]}  Nxd4 {[%clk 1:18:11]} 11. Nxd4 {[%clk 1:30:55]}  Ng6 {[%clk 1:17:22]} 12. Be3 {[%clk 1:28:10]}  Qc7 {[%clk 1:17:21]}
13. Be2 {[%clk 1:23:12]}  Bd6 {[%clk 1:17:28]} 14. h3 {[%clk 1:23:35]}  O-O {[%clk 1:17:44]} 15. Bf3 {[%clk 1:21:08]}  Rd8 {[%clk 1:11:56]}
16. Qe2 {[%clk 1:14:25]}  e5 {[%clk 1:10:23]} 17. Nb3 {[%clk 1:14:46]}  Be6 {[%clk 1:09:20]} 18. Nd2 {[%clk 1:13:59]}  f5 {[%clk 1:06:43]}
19. Bg5 {[%clk 1:06:03]}  Rdc8 {[%clk 0:43:15]} 20. g4 {[%clk 0:53:02]}  h6 {[%clk 0:37:19]} 21. gxf5 {[%clk 0:53:00]}  Bxf5 {[%clk 0:37:31]}
22. Bd5+ {[%clk 0:52:29]}  Kh7 {[%clk 0:35:18]} 23. c3 {[%clk 0:51:35]}  Qd7 {[%clk 0:29:43]} 24. Ne4 {[%clk 0:48:02]}  Bxh3 {[%clk 0:19:12]}
25. Rfe1 {[%clk 0:28:32]}  Be7 {[%clk 0:16:18]} 26. Bb3 {[%clk 0:21:05]}  Rf8 {[%clk 0:09:43]} 27. Bxe7 {[%clk 0:19:04]}  Qxe7 {[%clk 0:09:30]}
28. Qe3 {[%clk 0:18:46]}  Bg4 {[%clk 0:08:32]} 29. Qg3 {[%clk 0:18:18]}  Rf4 {[%clk 0:08:10]} 30. Bc2 {[%clk 0:17:38]}  Raf8 {[%clk 0:06:05]}
31. Re3 {[%clk 0:16:33]}  Bf3 {[%clk 0:03:51]} 32. Nd2 {[%clk 0:06:03]}  Rg4 {[%clk 0:03:42]} 33. Rxf3 {[%clk 0:04:45]}  Rxg3+ {[%clk 0:04:02]}
34. Rxg3 {[%clk 0:05:13]}  Kh8 {[%clk 0:02:01]} 35. Bxg6 {[%clk 0:05:03]}  Qd6 {[%clk 0:01:37]} 36. Ne4 {[%clk 0:05:19]}  Qb6 {[%clk 0:01:52]}
37. b4 {[%clk 0:05:30]}  Rf4 {[%clk 0:01:45]} 38. Rd1 {[%clk 0:05:34]}  Rf8 {[%clk 0:00:58]} 39. Rd6 {[%clk 0:04:17]}  Qc7 {[%clk 0:01:09]}
40. Rgd3 {[%clk 0:03:54]}  Qe7 {[%clk 0:00:55]} 41. Rg3 {[%clk 0:01:30]}  Rf4 {[%clk 0:29:27]} 42. Rd5 {[%clk 0:29:39]}  Rf8 {[%clk 0:24:17]}
43. a5 {[%clk 0:26:27]}  Qe6 {[%clk 0:19:30]} 44. Rd6 {[%clk 0:22:30]}  Qe7 {[%clk 0:17:50]} 45. c4 {[%clk 0:22:48]}  Qh4 {[%clk 0:17:45]}
46. c5 {[%clk 0:20:57]}  Rf4 {[%clk 0:15:37]} 47. c6 {[%clk 0:16:32]}  Rxe4 {[%clk 0:09:02]} 48. Bxe4 {[%clk 0:16:26]}  Qxe4 {[%clk 0:09:12]}
49. c7 {[%clk 0:16:51]}  Qe1+ {[%clk 0:09:35]} 50. Kg2 {[%clk 0:17:12]}  Qe4+ {[%clk 0:09:59]} 51. Kh2 {[%clk 0:17:35]}  Qc2 {[%clk 0:08:53]}
52. Rd8+ {[%clk 0:17:13]}  Kh7 {[%clk 0:09:17]} 53. c8=Q {[%clk 0:17:39]}  Qxf2+ {[%clk 0:09:39]} 54. Rg2 {[%clk 0:17:02]}  Qf4+ {[%clk 0:09:59]}
55. Kg1 {[%clk 0:17:26]} 1-0

[Event "Irish Championship 2026"]
[Site "Talbot Hotel Stillorgan, Co.Dublin, IE"]
[Date "2026.08.04"]
[Round "4"]
[White "Rai, Oleksii"]
[Black "Daly, Colm"]
[Result "1/2-1/2"]
[Board "72"]
[TimeControl "40/5400+30:1800+30"]
[WhiteFideId "2531526"]
[BlackFideId "2500434"]
[WhiteElo "1840"]
[BlackElo "2182"]
[BlackTitle "FM"]
[WhiteClock "0:02:01"]
[BlackClock "0:13:50"]
[Variant "Standard"]
[EndDate "2026.08.04"]
[EndTime "19:21:47"]

1. e4 {[%clk 1:30:58]}  c5 {[%clk 0:47:59]} 2. Nf3 {[%clk 1:31:18]}  d6 {[%clk 0:47:41]} 3. d4 {[%clk 1:31:40]}  cxd4 {[%clk 0:48:04]}
4. Nxd4 {[%clk 1:32:05]}  Nf6 {[%clk 0:48:26]} 5. Nc3 {[%clk 1:32:27]}  Nc6 {[%clk 0:48:51]} 6. f3 {[%clk 1:32:47]}  h5 {[%clk 0:46:41]}
7. Be3 {[%clk 1:33:03]}  Bd7 {[%clk 0:35:43]} 8. Qd2 {[%clk 1:33:03]}  a6 {[%clk 0:35:16]} 9. O-O-O {[%clk 1:28:03]}  e6 {[%clk 0:35:27]}
10. Kb1 {[%clk 1:25:35]}  Be7 {[%clk 0:35:47]} 11. h4 {[%clk 1:12:51]}  Rc8 {[%clk 0:35:05]} 12. Bd3 {[%clk 1:11:46]}  b5 {[%clk 0:34:49]}
13. Nce2 {[%clk 1:11:39]}  Ne5 {[%clk 0:31:29]} 14. Rdg1 {[%clk 1:05:41]}  d5 {[%clk 0:29:17]} 15. Bf4 {[%clk 0:59:30]}  Bd6 {[%clk 0:11:28]}
16. Bg5 {[%clk 0:59:08]}  dxe4 {[%clk 0:11:25]} 17. fxe4 {[%clk 0:59:28]}  Be7 {[%clk 0:11:22]} 18. Nf3 {[%clk 0:50:41]}  Nfg4 {[%clk 0:09:02]}
19. Bxe7 {[%clk 0:47:00]}  Qxe7 {[%clk 0:09:25]} 20. Nxe5 {[%clk 0:47:17]}  Nxe5 {[%clk 0:09:53]} 21. Nd4 {[%clk 0:44:14]}  g6 {[%clk 0:07:43]}
22. Nf3 {[%clk 0:42:12]}  Qc5 {[%clk 0:05:55]} 23. Nxe5 {[%clk 0:41:21]}  Qxe5 {[%clk 0:06:23]} 24. Rf1 {[%clk 0:40:04]}  Bc6 {[%clk 0:06:32]}
25. Qf4 {[%clk 0:39:23]}  Qxf4 {[%clk 0:06:41]} 26. Rxf4 {[%clk 0:39:51]}  Ke7 {[%clk 0:05:38]} 27. Re1 {[%clk 0:38:37]}  e5 {[%clk 0:05:56]}
28. Rf2 {[%clk 0:38:47]}  Rhf8 {[%clk 0:05:49]} 29. a4 {[%clk 0:33:08]}  Rcd8 {[%clk 0:02:43]} 30. axb5 {[%clk 0:30:53]}  axb5 {[%clk 0:06:27]}
31. b3 {[%clk 0:30:54]}  Rd4 {[%clk 0:04:17]} 32. g3 {[%clk 0:29:12]}  b4 {[%clk 0:04:35]} 33. Kb2 {[%clk 0:29:23]}  Rfd8 {[%clk 0:04:08]}
34. Ref1 {[%clk 0:25:21]}  Rf8 {[%clk 0:03:41]} 35. Re2 {[%clk 0:25:07]}  Ra8 {[%clk 0:03:06]} 36. Ref2 {[%clk 0:24:26]}  Rf8 {[%clk 0:03:30]}
37. Re2 {[%clk 0:24:43]}  f6 {[%clk 0:03:55]} 38. Ra1 {[%clk 0:24:00]}  Ra8 {[%clk 0:04:22]} 39. Rxa8 {[%clk 0:23:54]}  Bxa8 {[%clk 0:04:50]}
40. Re3 {[%clk 0:24:12]}  Kd6 {[%clk 0:03:03]} 41. c3 {[%clk 0:24:23]}  bxc3+ {[%clk 0:03:19]} 42. Kxc3 {[%clk 0:24:51]}  Kc5 {[%clk 0:03:07]}
43. Re1 {[%clk 0:24:50]}  Bc6 {[%clk 0:01:39]} 44. Re3 {[%clk 0:23:07]}  Bb7 {[%clk 0:01:51]} 45. Re1 {[%clk 0:22:56]}  Rb4 {[%clk 0:20:13]}
46. Bc4 {[%clk 0:52:00]}  Bc6 {[%clk 0:19:10]} 47. Re3 {[%clk 0:45:04]}  Rb7 {[%clk 0:17:34]} 48. Re1 {[%clk 0:44:17]}  Kd6 {[%clk 0:16:36]}
49. Rd1+ {[%clk 0:40:03]}  Ke7 {[%clk 0:15:12]} 50. Re1 {[%clk 0:40:18]}  Ra7 {[%clk 0:13:49]} 51. Kb2 {[%clk 0:39:36]}  Ra8 {[%clk 0:11:33]}
52. b4 {[%clk 0:37:31]}  g5 {[%clk 0:10:17]} 53. hxg5 {[%clk 0:33:10]}  fxg5 {[%clk 0:10:46]} 54. Rh1 {[%clk 0:29:30]}  Rh8 {[%clk 0:10:54]}
55. Bd3 {[%clk 0:29:06]}  h4 {[%clk 0:11:04]} 56. gxh4 {[%clk 0:29:10]}  gxh4 {[%clk 0:09:08]} 57. Kc3 {[%clk 0:28:37]}  h3 {[%clk 0:04:47]}
58. Rh2 {[%clk 0:28:51]}  Bd7 {[%clk 0:04:49]} 59. b5 {[%clk 0:20:19]}  Kd6 {[%clk 0:05:10]} 60. Kb4 {[%clk 0:20:05]}  Rf8 {[%clk 0:03:13]}
61. b6 {[%clk 0:14:10]}  Rf3 {[%clk 0:02:05]} 62. Bb5 {[%clk 0:15:54]}  Bc8 {[%clk 0:01:28]} 63. Rd2+ {[%clk 0:13:49]}  Ke7 {[%clk 0:01:57]}
64. b7 {[%clk 0:12:21]}  Bxb7 {[%clk 0:02:13]} 65. Rd7+ {[%clk 0:12:46]}  Kf6 {[%clk 0:02:12]} 66. Rxb7 {[%clk 0:13:12]}  Re3 {[%clk 0:02:00]}
67. Bc6 {[%clk 0:12:45]}  Kg6 {[%clk 0:01:42]} 68. Rb8 {[%clk 0:12:28]}  Kg7 {[%clk 0:01:56]} 69. Kc4 {[%clk 0:11:58]}  h2 {[%clk 0:01:31]}
70. Rb1 {[%clk 0:12:19]}  Kf6 {[%clk 0:01:25]} 71. Kc5 {[%clk 0:11:34]}  Rc3+ {[%clk 0:01:12]} 72. Kd6 {[%clk 0:11:52]}  Kg5 {[%clk 0:01:13]}
73. Rh1 {[%clk 0:11:21]}  Rc2 {[%clk 0:01:27]} 74. Kxe5 {[%clk 0:11:09]}  Rxc6 {[%clk 0:01:20]} 75. Rxh2 {[%clk 0:11:33]}  Kg6 {[%clk 0:01:37]}
76. Rf2 {[%clk 0:11:45]}  Ra6 {[%clk 0:01:56]} 77. Rd2 {[%clk 0:11:01]}  Kf7 {[%clk 0:02:08]} 78. Rd7+ {[%clk 0:11:22]}  Ke8 {[%clk 0:02:29]}
79. Rd6 {[%clk 0:11:24]}  Ra4 {[%clk 0:02:35]} 80. Rb6 {[%clk 0:10:58]}  Ke7 {[%clk 0:02:24]} 81. Rb7+ {[%clk 0:11:20]}  Ke8 {[%clk 0:02:50]}
82. Kf5 {[%clk 0:11:38]}  Ra6 {[%clk 0:02:01]} 83. e5 {[%clk 0:11:45]}  Rc6 {[%clk 0:02:05]} 84. Rb4 {[%clk 0:11:51]}  Ra6 {[%clk 0:01:11]}
85. Rg4 {[%clk 0:12:11]}  Kf7 {[%clk 0:01:09]} 86. Rh4 {[%clk 0:12:25]}  Ra1 {[%clk 0:01:13]} 87. Rh7+ {[%clk 0:12:46]}  Kg8 {[%clk 0:01:26]}
88. Rd7 {[%clk 0:12:56]}  Kf8 {[%clk 0:01:33]} 89. Ke6 {[%clk 0:13:10]}  Ke8 {[%clk 0:01:07]} 90. Rd6 {[%clk 0:13:08]}  Rh1 {[%clk 0:01:04]}
91. Rd5 {[%clk 0:13:28]}  Rh6+ {[%clk 0:01:03]} 92. Kf5 {[%clk 0:13:51]}  Rh5+ {[%clk 0:01:26]} 93. Kg6 {[%clk 0:14:07]}  Rh1 {[%clk 0:01:37]}
94. Rd4 {[%clk 0:13:59]}  Ke7 {[%clk 0:02:01]} 95. Kf5 {[%clk 0:13:50]} 1/2-1/2

[Event "Irish Championship 2026"]
[Site "Talbot Hotel Stillorgan, Co.Dublin, IE"]
[Date "2026.08.04"]
[Round "4"]
[White "Freeman, Gordon"]
[Black "O'Connell, Gerard"]
[Result "1-0"]
[Board "73"]
[TimeControl "40/5400+30:1800+30"]
[WhiteFideId "2501309"]
[BlackFideId "2500493"]
[WhiteElo "2068"]
[BlackElo "1996"]
[WhiteTitle "FM"]
[WhiteClock "0:01:31"]
[BlackClock "0:03:34"]
[Variant "Standard"]
[EndDate "2026.08.04"]
[EndTime "17:32:41"]

1. d4 {[%clk 1:15:33]}  Nf6 {[%clk 1:30:16]} 2. Nf3 {[%clk 1:15:56]}  g6 {[%clk 1:30:35]} 3. Bg5 {[%clk 1:15:19]}  Bg7 {[%clk 1:30:45]}
4. Nbd2 {[%clk 1:15:44]}  d5 {[%clk 1:29:37]} 5. e3 {[%clk 1:15:29]}  Nbd7 {[%clk 1:27:07]} 6. Bd3 {[%clk 1:14:07]}  O-O {[%clk 1:27:06]}
7. O-O {[%clk 1:06:43]}  c5 {[%clk 1:24:38]} 8. c3 {[%clk 1:07:07]}  Qb6 {[%clk 1:17:05]} 9. Rb1 {[%clk 1:06:03]}  e5 {[%clk 1:10:54]}
10. Nxe5 {[%clk 0:39:36]}  Nxe5 {[%clk 1:04:27]} 11. dxe5 {[%clk 0:40:02]}  Ng4 {[%clk 1:03:50]} 12. c4 {[%clk 0:40:01]}  Nxe5 {[%clk 1:03:43]}
13. cxd5 {[%clk 0:37:20]}  Nxd3 {[%clk 0:20:05]} 14. Nc4 {[%clk 0:36:49]}  Qb4 {[%clk 0:20:18]} 15. Qxd3 {[%clk 0:37:37]}  b5 {[%clk 0:20:37]}
16. Nd2 {[%clk 0:29:38]}  c4 {[%clk 0:18:06]} 17. Qc2 {[%clk 0:26:44]}  f5 {[%clk 0:13:51]} 18. Nf3 {[%clk 0:23:24]}  Bb7 {[%clk 0:12:57]}
19. Rfd1 {[%clk 0:21:42]}  h6 {[%clk 0:13:06]} 20. Bf4 {[%clk 0:18:25]}  Rfe8 {[%clk 0:05:20]} 21. Rd2 {[%clk 0:11:44]}  Rad8 {[%clk 0:05:23]}
22. Rbd1 {[%clk 0:10:36]}  Qc5 {[%clk 0:04:53]} 23. d6 {[%clk 0:04:58]}  Be4 {[%clk 0:05:06]} 24. Qc1 {[%clk 0:05:00]}  Rd7 {[%clk 0:05:04]}
25. Nd4 {[%clk 0:04:20]}  Qb6 {[%clk 0:03:26]} 26. b3 {[%clk 0:02:25]}  g5 {[%clk 0:02:07]} 27. bxc4 {[%clk 0:01:52]}  gxf4 {[%clk 0:02:20]}
28. c5 {[%clk 0:02:14]}  Qa5 {[%clk 0:02:21]} 29. c6 {[%clk 0:01:06]}  Rxd6 {[%clk 0:02:42]} 30. Nb3 {[%clk 0:01:23]}  Rxc6 {[%clk 0:02:23]}
31. Qxc6 {[%clk 0:01:20]}  Bxc6 {[%clk 0:02:35]} 32. Nxa5 {[%clk 0:01:46]}  fxe3 {[%clk 0:02:57]} 33. fxe3 {[%clk 0:01:15]}  Bc3 {[%clk 0:03:11]}
34. Nxc6 {[%clk 0:01:05]}  Bxd2 {[%clk 0:03:34]} 35. Rxd2 {[%clk 0:01:31]} 1-0

[Event "Irish Championship 2026"]
[Site "Talbot Hotel Stillorgan, Co.Dublin, IE"]
[Date "2026.08.04"]
[Round "4"]
[White "Bartczak, Korneliusz"]
[Black "Ryan, Joshua"]
[Result "1-0"]
[Board "74"]
[TimeControl "40/5400+30:1800+30"]
[WhiteFideId "2523558"]
[BlackFideId "2516705"]
[WhiteElo "2062"]
[BlackElo "1866"]
[WhiteClock "0:01:00"]
[BlackClock "0:40:07"]
[Variant "Standard"]
[EndDate "2026.08.04"]
[EndTime "16:53:51"]

1. e4 {[%clk 1:30:59]}  e5 {[%clk 1:29:39]} 2. Nf3 {[%clk 1:31:13]}  Nc6 {[%clk 1:30:04]} 3. Bc4 {[%clk 1:31:03]}  Nf6 {[%clk 1:30:04]}
4. d3 {[%clk 1:30:54]}  Bc5 {[%clk 1:30:27]} 5. c3 {[%clk 1:30:46]}  d6 {[%clk 1:30:52]} 6. O-O {[%clk 1:28:19]}  O-O {[%clk 1:31:16]}
7. h3 {[%clk 1:27:54]}  h6 {[%clk 1:31:42]} 8. Nbd2 {[%clk 1:27:03]}  a5 {[%clk 1:31:35]} 9. Re1 {[%clk 1:23:15]}  Be6 {[%clk 1:31:56]}
10. Bb5 {[%clk 1:17:24]}  Qb8 {[%clk 1:32:16]} 11. Nf1 {[%clk 1:11:08]}  Qa7 {[%clk 1:32:32]} 12. Be3 {[%clk 1:07:55]}  Bxe3 {[%clk 1:32:50]}
13. Nxe3 {[%clk 1:06:36]}  a4 {[%clk 1:33:11]} 14. Qc2 {[%clk 0:58:10]}  Rfb8 {[%clk 1:26:44]} 15. Re2 {[%clk 0:42:12]}  Ne7 {[%clk 1:19:55]}
16. d4 {[%clk 0:36:22]}  Ng6 {[%clk 1:17:17]} 17. Bc4 {[%clk 0:30:54]}  Qa5 {[%clk 1:09:23]} 18. Bxe6 {[%clk 0:28:47]}  fxe6 {[%clk 1:09:41]}
19. dxe5 {[%clk 0:24:03]}  dxe5 {[%clk 1:01:32]} 20. Rd1 {[%clk 0:21:05]}  Rf8 {[%clk 0:59:55]} 21. g3 {[%clk 0:17:00]}  Nh5 {[%clk 0:56:26]}
22. Nh2 {[%clk 0:16:03]}  Rf7 {[%clk 0:49:14]} 23. Nhg4 {[%clk 0:15:29]}  Qc5 {[%clk 0:48:44]} 24. Qd3 {[%clk 0:13:16]}  Qe7 {[%clk 0:46:01]}
25. Red2 {[%clk 0:12:28]}  Raf8 {[%clk 0:44:34]} 26. Qd7 {[%clk 0:09:09]}  Qg5 {[%clk 0:44:46]} 27. Qxe6 {[%clk 0:07:19]}  Nhf4 {[%clk 0:43:42]}
28. gxf4 {[%clk 0:05:50]}  Nxf4 {[%clk 0:44:00]} 29. Qxe5 {[%clk 0:04:55]}  Qh4 {[%clk 0:43:27]} 30. Nf5 {[%clk 0:01:02]}  Nxh3+ {[%clk 0:43:21]}
31. Kh2 {[%clk 0:00:33]}  Nf4+ {[%clk 0:40:07]} 32. Nxh4 {[%clk 0:01:00]} 1-0